bitfinex/quotes_SOLUSD_20250206
["timestamp","ask_amount","ask_price","bid_price","bid_amount"]
[1738846884198,0.11043185,198.41,198.4,35.67252052]
[1738846885121,0.11043185,198.41,198.4,36.54703052]
[1738846885818,1.921e-05,198.42,198.41,1.37647]
[1738846886020,0.063,198.48,198.44,2.12549]
[1738846886021,9.719e-05,198.45,198.44,2.12549]
[1738846886230,9.719e-05,198.45,198.44,17.37885526]
[1738846886529,9.719e-05,198.45,198.44,16.37885526]
[1738846887323,9.719e-05,198.45,198.44,20.29266526]
[1738846887708,9.719e-05,198.45,198.44,22.41815526]
[1738846887901,0.063,198.48,198.44,22.41815526]
[1738846887902,6.026e-05,198.46,198.45,2.12549]
[1738846888102,6.026e-05,198.46,198.45,23.95303526]
[1738846888302,6.937e-05,198.47,198.46,2.12549]
[1738846888503,6.937e-05,198.47,198.46,17.37885526]
[1738846888817,0.063,198.51,198.5,1.0]
[1738846889023,0.063,198.51,198.5,32.63222052]
[1738846889531,0.063,198.54,198.53,20.29036526]
[1738846889723,0.16685165,198.54,198.53,20.29036526]
[1738846890629,0.16685165,198.54,198.53,15.25336526]
[1738846891134,0.16685165,198.54,198.52,15.25336526]
[1738846891636,0.16685165,198.54,198.53,15.25336526]
[1738846893033,0.16685165,198.54,198.53,20.29036526]
[1738846895730,0.09364654,198.55,198.53,30.32725526]
[1738846895918,0.09364654,198.55,198.54,15.25336526]
[1738846896433,0.09364654,198.55,198.54,16.37885526]
[1738846896607,0.09364654,198.55,198.54,15.37885526]
[1738846896803,0.09364654,198.55,198.54,15.25336526]
[1738846897206,0.09364654,198.55,198.54,20.29006526]
[1738846898839,0.10604873,198.57,198.56,1.0]
[1738846899131,0.10604873,198.57,198.56,16.37885526]
[1738846899332,0.063,198.63,198.57,5.16149]
[1738846899638,0.063,198.63,198.58,30.50673052]
[1738846899974,0.063,198.63,198.58,30.63222052]
[1738846900108,0.063,198.63,198.59,1.12549]
[1738846900307,0.063,198.63,198.62,16.88566526]
[1738846900514,0.063,198.68,198.62,24.14185526]
[1738846900705,0.063,198.68,198.63,9.73111296]
[1738846900908,0.063,198.68,198.64,0.12549]
[1738846901215,0.063,198.68,198.67,9.73111296]
[1738846901539,0.063,198.68,198.67,14.76451296]
[1738846902727,0.063,198.68,198.67,15.20096233]
[1738846902938,0.063,198.68,198.67,16.32645233]
[1738846903325,0.063,198.68,198.67,15.32645233]
[1738846904445,0.063,198.68,198.67,20.35985233]
[1738846905043,0.063,198.68,198.67,37.81179466]
[1738846905252,0.063,198.72,198.68,2.12549]
[1738846905458,0.063,198.72,198.7,30.40192466]
[1738846905618,0.063,198.72,198.7,31.52741466]
[1738846905817,0.063,198.72,198.7,30.52741466]
[1738846906018,0.063,198.72,198.7,15.20096233]
[1738846906447,0.063,198.72,198.7,20.23366233]
[1738846906829,0.063,198.72,198.7,35.43462466]
[1738846907039,0.063,198.72,198.7,38.03752466]
[1738846907232,0.063,198.72,198.71,16.32645233]
[1738846907553,0.063,198.72,198.71,15.20096233]
[1738846908062,0.063,198.72,198.71,15.57743233]
[1738846908271,0.063,198.72,198.71,16.57743233]
[1738846908750,0.063,198.72,198.71,22.60983233]
[1738846909426,0.063,198.72,198.71,21.60983233]
[1738846909745,0.16542569,198.72,198.71,20.23336233]
[1738846912056,0.16542569,198.72,198.71,15.20096233]
[1738846912354,0.16542569,198.72,198.7,15.20096233]
[1738846912554,0.16542569,198.72,198.71,15.20096233]
[1738846912859,0.16542569,198.72,198.7,15.20096233]
[1738846913058,0.16542569,198.72,198.71,15.20096233]
[1738846914264,0.16542569,198.72,198.71,20.23336233]
[1738846914440,0.16542569,198.72,198.71,20.35885233]
[1738846915158,0.16542569,198.72,198.71,20.48434233]
[1738846915359,0.16542569,198.72,198.71,21.60983233]
[1738846915557,0.15683744,198.73,198.72,0.12549]
[1738846915764,0.15683744,198.73,198.72,15.32645233]
[1738846916238,0.17106836,198.74,198.73,5.0319]
[1738846916431,0.17106836,198.74,198.73,20.35835233]
[1738846917062,0.17106836,198.74,198.73,20.23286233]
[1738846919065,0.16211128,198.75,198.73,20.35835233]
[1738846919366,0.16211128,198.75,198.74,15.20096233]
[1738846920333,0.16211128,198.75,198.74,20.23256233]
[1738846923833,0.16211128,198.75,198.74,15.20096233]
[1738846924235,0.16211128,198.75,198.73,15.20096233]
[1738846925269,0.16211128,198.75,198.72,15.20096233]
[1738846926155,0.16211128,198.75,198.73,15.20096233]
[1738846926367,0.16211128,198.75,198.74,15.20096233]
[1738846928576,0.16211128,198.75,198.74,20.23256233]
[1738846929674,0.26592993,198.75,198.74,20.23256233]
[1738846930867,0.16681865,198.75,198.74,20.23256233]
[1738846931071,0.16681865,198.75,198.74,20.35805233]
[1738846931845,0.10596839,198.76,198.75,0.12549]
[1738846932174,3.429e-05,198.77,198.76,0.25098]
[1738846932470,0.09146318,198.83,198.79,5.15589]
[1738846932644,0.09146318,198.83,198.79,35.55781466]
[1738846932853,4.06e-05,198.84,198.82,1.37647]
[1738846933049,0.063,198.88,198.84,0.12549]
[1738846933270,0.063,198.88,198.87,15.20096233]
[1738846934281,0.063,198.88,198.87,15.32645233]
[1738846934564,0.063,198.88,198.87,35.80679466]
[1738846934988,0.03,198.94,198.91,0.12549]
[1738846935293,0.03,198.94,198.91,15.32645233]
[1738846935590,0.03,198.94,198.91,15.20096233]
[1738846935795,0.03,198.94,198.91,15.32645233]
[1738846935977,0.03,198.94,198.91,15.20096233]
[1738846937072,0.03,198.94,198.9,15.20096233]
[1738846937391,0.03,198.94,198.88,15.20096233]
[1738846937562,0.03,198.94,198.89,15.20096233]
[1738846937896,15.20096233,198.93,198.87,15.20096233]
[1738846938068,0.03,198.94,198.88,15.20096233]
[1738846938069,15.23096233,198.94,198.88,15.20096233]
[1738846938392,0.03,198.94,198.89,15.20096233]
[1738846938765,0.03,198.94,198.91,15.20096233]
[1738846940193,0.03,198.94,198.91,20.22826233]
[1738846940565,0.03,198.94,198.91,29.29459448]
[1738846942678,0.03,198.94,198.91,29.42008448]
[1738846942875,0.03,198.94,198.91,29.67106448]
[1738846944175,0.03,198.94,198.91,29.29459448]
[1738846946977,0.03,198.94,198.91,29.42008448]
[1738846947199,0.03,198.94,198.91,29.29459448]
[1738846948086,0.03,198.94,198.91,29.42008448]
[1738846949308,0.03,198.94,198.91,29.67106448]
[1738846949697,0.160686,198.92,198.91,29.67106448]
[1738846949901,0.160686,198.92,198.91,30.67106448]
[1738846950581,0.160686,198.92,198.91,29.42008448]
[1738846951011,0.160686,198.92,198.91,29.29459448]
[1738846951391,0.160686,198.92,198.91,24.26729448]
[1738846952884,0.160686,198.92,198.88,5.0911]
[1738846952885,0.160686,198.92,198.89,24.26729448]
[1738846953099,0.160686,198.92,198.88,24.33029448]
[1738846953514,0.160686,198.92,198.89,24.26729448]
[1738846954224,0.160686,198.92,198.88,24.33029448]
[1738846954509,5.187886,198.92,198.88,0.063]
[1738846954713,29.45518048,198.92,198.88,0.063]
[1738846955089,0.160686,198.92,198.88,0.063]
[1738846955308,0.160686,198.92,198.88,24.33029448]
[1738846955709,0.160686,198.92,198.91,24.26729448]
[1738846956745,0.160686,198.92,198.9,24.26729448]
[1738846956912,0.160686,198.92,198.88,24.33029448]
[1738846957112,5.187886,198.92,198.88,24.33029448]
[1738846957417,0.160686,198.92,198.88,24.33029448]
[1738846958030,0.160686,198.92,198.89,24.26729448]
[1738846958533,0.160686,198.92,198.88,24.33029448]
[1738846959938,0.160686,198.92,198.89,24.26729448]
[1738846960734,0.160686,198.92,198.89,20.20445286]
[1738846961039,0.160686,198.92,198.89,15.17665286]
[1738846962444,0.160686,198.92,198.88,0.063]
[1738846963638,5.187886,198.92,198.88,0.063]
[1738846963847,15.17665286,198.91,198.88,0.063]
[1738846964245,15.17665286,198.89,198.88,0.063]
[1738846965123,15.42763286,198.89,198.88,0.063]
[1738846965327,17.07832286,198.89,198.88,0.063]
[1738846965528,19.07832286,198.89,198.88,0.063]
[1738846965728,18.07832286,198.89,198.88,0.063]
[1738846966028,17.07832286,198.89,198.88,0.063]
[1738846966330,22.10622286,198.89,198.88,0.063]
[1738846967152,21.98073286,198.89,198.88,0.063]
[1738846967338,21.85524286,198.89,198.88,0.063]
[1738846967739,21.72975286,198.89,198.88,0.063]
[1738846968955,16.70185286,198.89,198.88,0.063]
[1738846969543,11.0331,198.9,198.88,0.063]
[1738846969744,0.10663198,198.89,198.88,0.063]
[1738846969944,0.10663198,198.89,198.88,15.23965286]
[1738846970659,0.10663198,198.89,198.88,20.26775286]
[1738846972031,0.10663198,198.89,198.88,15.23965286]
[1738846973141,0.10663198,198.89,198.88,20.26775286]
[1738846976447,0.10663198,198.89,198.88,22.03893286]
[1738846976759,0.10663198,198.89,198.88,37.21558572]
[1738846977137,0.09998972,198.93,198.91,0.25098]
[1738846977458,0.09998972,198.93,198.92,15.17665286]
[1738846977760,0.09998972,198.93,198.92,20.20375286]
[1738846978140,0.09998972,198.93,198.92,23.95154998]
[1738846981667,8.972e-05,198.93,198.92,24.32801998]
[1738846982071,8.972e-05,198.93,198.92,24.20252998]
[1738846983668,3.484e-05,198.94,198.93,0.25098]
[1738846983964,1.679e-05,198.95,198.94,0.12549]
[1738846984139,7.075e-05,198.96,198.94,15.30214286]
[1738846984343,7.075e-05,198.96,198.95,15.42763286]
[1738846985583,7.075e-05,198.96,198.95,20.20295286]
[1738846986248,7.075e-05,198.96,198.95,23.95074998]
[1738846988260,7.075e-05,198.96,198.95,24.20172998]
[1738846989760,0.09424163,198.96,198.95,24.20172998]
[1738846990085,4.163e-05,198.96,198.95,24.20172998]
[1738846990271,4.163e-05,198.96,198.95,23.95074998]
[1738846991461,4.163e-05,198.96,198.95,24.20172998]
[1738846991657,6.396e-05,198.97,198.96,0.12549]
[1738846991864,6.396e-05,198.97,198.96,15.30214286]
[1738846992282,6.396e-05,198.97,198.96,20.32824286]
[1738846993080,6.396e-05,198.97,198.96,20.20275286]
[1738846993258,6.396e-05,198.97,198.96,5.0261]
[1738846993457,6.396e-05,198.97,198.93,20.20345286]
[1738846994386,6.396e-05,198.97,198.94,15.17665286]
[1738846994777,6.396e-05,198.97,198.96,15.17665286]
[1738846996599,6.396e-05,198.97,198.96,20.20275286]
[1738846998007,6.396e-05,198.97,198.96,20.45373286]
[1738846998975,6.396e-05,198.97,198.96,20.57922286]
[1738847000097,0.1079951,198.98,198.97,0.12549]
[1738847000098,5.906e-05,198.98,198.97,0.12549]
[1738847000303,5.906e-05,198.98,198.97,15.30214286]
[1738847000610,5.777e-05,198.99,198.98,0.25098]
[1738847000776,9.922e-05,199.0,198.98,15.42763286]
[1738847001283,9.922e-05,199.0,198.99,30.60428572]
[1738847001680,7.503e-05,199.01,199.0,0.25098]
[1738847001881,7.503e-05,199.01,199.0,30.60428572]
[1738847002185,4.964e-05,199.02,199.0,30.72977572]
[1738847002377,4.964e-05,199.02,199.01,15.42763286]
[1738847004106,4.964e-05,199.02,199.01,20.45243286]
[1738847004313,4.964e-05,199.02,199.01,20.20145286]
[1738847004604,4.964e-05,199.02,199.01,5.0248]
[1738847004807,4.964e-05,199.02,199.01,20.20145286]
[1738847006921,4.964e-05,199.02,199.01,20.45243286]
[1738847008383,4.964e-05,199.02,199.01,20.57792286]
[1738847008813,4.964e-05,199.02,199.01,21.57792286]
[1738847009329,4.964e-05,199.02,199.01,20.57792286]
[1738847009526,4.964e-05,199.02,199.01,20.45243286]
[1738847009730,0.10135703,199.02,199.01,20.20145286]
[1738847010024,0.10135703,199.02,199.01,5.0248]
[1738847010205,0.10135703,199.02,199.01,20.20145286]
[1738847011032,0.10130739,199.02,199.01,20.20145286]
[1738847012652,0.10130739,199.02,199.01,24.24937388]
[1738847014811,0.10130739,199.02,199.01,29.27417388]
[1738847016117,0.10130739,199.02,199.0,24.24937388]
[1738847016434,0.10130739,199.02,198.96,29.27547388]
[1738847016623,25.86868127,199.02,198.96,5.0261]
[1738847016805,25.86868127,199.02,198.93,29.27617388]
[1738847016806,24.24937388,199.0,198.93,29.27617388]
[1738847017008,24.24937388,198.99,198.93,5.0268]
[1738847017929,7.71201081,199.02,198.93,29.27617388]
[1738847017930,24.24937388,199.0,198.93,29.27617388]
[1738847018131,24.24937388,199.01,198.94,24.24937388]
[1738847018315,24.24937388,199.0,198.94,24.24937388]
[1738847019243,24.24937388,199.0,198.96,0.063]
[1738847019539,24.24937388,198.98,198.96,0.063]
[1738847021215,29.27447388,199.0,198.96,0.063]
[1738847022144,24.24937388,198.99,198.96,0.063]
[1738847022542,24.24937388,198.98,198.96,0.063]
[1738847022737,24.24937388,198.99,198.96,0.063]
[1738847024321,29.27467388,198.99,198.96,0.063]
[1738847024540,24.24937388,198.97,198.96,0.063]
[1738847024842,31.63520453,198.97,198.96,0.063]
[1738847025457,0.12549,198.95,198.92,0.063]
[1738847025626,24.37486388,198.93,198.92,0.063]
[1738847026643,29.27617388,198.93,198.92,0.063]
[1738847026941,1.4937,198.96,198.92,0.063]
[1738847027143,1.4937,198.96,198.92,24.31237388]
[1738847027627,24.24937388,199.0,198.93,24.24937388]
[1738847027821,29.27457388,199.0,198.93,24.24937388]
[1738847028656,25.89906388,199.01,198.94,29.27587388]
[1738847029653,0.10312241,198.95,198.94,29.27587388]
[1738847030255,0.10312241,198.95,198.94,5.0265]
[1738847030438,0.10312241,198.95,198.94,29.27587388]
[1738847034749,0.10312241,198.95,198.94,20.18804154]
[1738847035665,0.10312241,198.95,198.94,23.93072718]
[1738847037559,0.10312241,198.95,198.94,8.76918564]
[1738847038543,0.10312241,198.95,198.93,0.063]
[1738847039072,15.26466395,198.95,198.93,0.063]
[1738847039249,15.16154154,198.94,198.93,0.063]
[1738847039444,21.13073079,198.94,198.93,0.063]
[1738847039767,21.25622079,198.94,198.93,0.063]
[1738847039967,21.38171079,198.94,198.93,0.063]
[1738847040271,21.25622079,198.94,198.93,0.063]
[1738847040772,30.38862823,198.94,198.93,0.063]
[1738847041448,30.51411823,198.94,198.93,0.063]
[1738847041849,31.63960823,198.94,198.93,0.063]
[1738847042149,32.63960823,198.94,198.93,0.063]
[1738847042375,84.65098,198.93,198.92,0.063]
[1738847042581,0.25098,198.89,198.88,0.063]
[1738847042746,25.48799967,198.89,198.88,0.063]
[1738847043072,24.41943898,198.89,198.88,0.063]
[1738847044572,29.32184898,198.89,198.88,0.063]
[1738847044756,30.39027033,198.89,198.88,0.063]
[1738847049070,29.44733898,198.89,198.88,0.063]
[1738847049484,5.0276,198.9,198.88,0.063]
[1738847049786,5.0276,198.9,198.76,0.063]
[1738847049787,1.25098,198.83,198.76,0.063]
[1738847050098,24.29394898,198.77,198.76,0.063]
[1738847050669,29.32484898,198.77,198.76,0.063]
[1738847051469,106.69394898,198.8,198.76,0.063]
[1738847052088,82.4,198.8,198.76,0.063]
[1738847052663,24.29394898,198.81,198.76,0.063]
[1738847054875,24.29394898,198.8,198.76,0.063]
[1738847055813,82.4,198.82,198.76,24.35694898]
[1738847056876,82.4,198.82,198.76,29.38784898]
[1738847057298,106.69394898,198.82,198.76,5.0939]
[1738847057494,24.29394898,198.81,198.76,5.0939]
[1738847058181,106.69394898,198.82,198.76,5.0939]
[1738847058984,82.4,198.82,198.76,29.38784898]
[1738847060707,82.4,198.82,198.76,15.25661688]
[1738847061010,97.59361688,198.82,198.76,0.063]
[1738847061316,102.62321688,198.82,198.76,0.063]
[1738847061481,15.19361688,198.81,198.76,0.063]
[1738847062091,15.19361688,198.78,198.76,0.063]
[1738847062312,15.19361688,198.77,198.76,0.063]
[1738847063017,20.22451688,198.77,198.76,0.063]
[1738847063678,20.35000688,198.77,198.76,0.063]
[1738847064295,21.29364884,198.77,198.76,0.063]
[1738847064500,23.54462884,198.77,198.76,0.063]
[1738847065708,1.37647,198.74,198.73,0.063]
[1738847065919,18.51403426,198.74,198.73,0.063]
[1738847066082,2.25098,198.72,198.71,0.063]
[1738847066411,2.25098,198.7,198.68,0.063]
[1738847066590,17.51417093,198.69,198.68,0.063]
[1738847066792,16.51417093,198.69,198.68,0.063]
[1738847067208,18.51417093,198.69,198.68,0.063]
[1738847067882,17.51417093,198.69,198.68,0.063]
[1738847068089,18.51417093,198.69,198.68,0.063]
[1738847068298,22.54707093,198.69,198.68,0.063]
[1738847069803,22.65402904,198.69,198.68,0.063]
[1738847070123,22.52853904,198.69,198.68,0.063]
[1738847070318,21.52853904,198.69,198.68,0.063]
[1738847075229,23.65402904,198.69,198.68,0.063]
[1738847075431,21.65402904,198.69,198.68,0.063]
[1738847077333,21.52853904,198.69,198.68,0.063]
[1738847079829,23.65402904,198.69,198.68,0.063]
[1738847080448,21.65402904,198.69,198.68,0.063]
[1738847081155,22.65402904,198.69,198.68,0.063]
[1738847081466,23.65402904,198.69,198.68,0.063]
[1738847082057,22.65402904,198.69,198.68,0.063]
[1738847082252,23.65402904,198.69,198.68,0.063]
[1738847082562,23.65402904,198.69,198.56,0.063]
[1738847082864,15.19361688,198.57,198.56,0.063]
[1738847083984,20.22961688,198.57,198.56,0.063]
[1738847084460,15.19361688,198.58,198.56,0.063]
[1738847084630,15.19361688,198.59,198.56,0.063]
[1738847084831,0.94448309,198.62,198.56,0.063]
[1738847084832,15.19361688,198.62,198.56,0.063]
[1738847085031,15.31910688,198.62,198.56,0.063]
[1738847085533,15.19361688,198.63,198.56,15.25661688]
[1738847085837,15.19361688,198.62,198.56,0.063]
[1738847086861,15.19361688,198.63,198.57,15.19361688]
[1738847087027,98.53776503,198.67,198.6,15.19361688]
[1738847087230,102.62701688,198.67,198.6,20.22871688]
[1738847087455,15.19361688,198.66,198.6,5.0351]
[1738847088059,102.62701688,198.67,198.6,20.22871688]
[1738847089474,102.62701688,198.67,198.6,20.29171688]
[1738847089648,0.09557251,198.61,198.6,20.29171688]
[1738847090770,0.09557251,198.61,198.6,0.063]
[1738847092552,0.09557251,198.61,198.6,15.25661688]
[1738847092869,0.09557251,198.61,198.6,20.29181688]
[1738847093173,0.09557251,198.61,198.6,5.0982]
[1738847094362,8.599e-05,198.63,198.6,76.84918]
[1738847094562,1.737e-05,198.69,198.65,0.37647]
[1738847094757,1.737e-05,198.69,198.68,15.19361688]
[1738847095165,1.737e-05,198.69,198.67,15.19361688]
[1738847095368,1.737e-05,198.69,198.68,15.19361688]
[1738847095955,1.737e-05,198.69,198.63,0.25098]
[1738847095956,1.737e-05,198.69,198.66,15.19361688]
[1738847096190,1.737e-05,198.69,198.65,15.19361688]
[1738847096687,1.737e-05,198.69,198.66,5.0337]
[1738847097765,1.737e-05,198.69,198.66,20.22731688]
[1738847098058,1.737e-05,198.69,198.66,5.0337]
[1738847098276,1.737e-05,198.69,198.67,15.19361688]
[1738847098652,1.737e-05,198.69,198.66,5.0337]
[1738847098653,1.737e-05,198.69,198.68,15.19361688]
[1738847099474,1.737e-05,198.69,198.67,15.19361688]
[1738847099678,1.737e-05,198.69,198.66,15.19361688]
[1738847099878,1.737e-05,198.69,198.67,15.19361688]
[1738847100382,1.737e-05,198.69,198.66,15.19361688]
[1738847100583,1.737e-05,198.69,198.67,15.19361688]
[1738847100770,1.737e-05,198.69,198.68,15.19361688]
[1738847101086,1.737e-05,198.69,198.67,15.19361688]
[1738847101499,0.03001737,198.69,198.65,15.19361688]
[1738847101857,0.03001737,198.69,198.66,15.19361688]
[1738847102806,0.03001737,198.69,198.65,15.19361688]
[1738847103117,0.03001737,198.69,198.64,15.19361688]
[1738847104314,97.59361688,198.68,198.61,20.22831688]
[1738847104616,82.52549,198.67,198.61,15.19361688]
[1738847104900,87.55889,198.67,198.61,15.19361688]
[1738847105278,102.75250688,198.67,198.6,20.29171688]
[1738847105501,102.75250688,198.67,198.61,15.19361688]
[1738847105706,87.55889,198.67,198.61,15.19361688]
[1738847107111,82.4,198.67,198.61,20.22851688]
[1738847108178,87.4335,198.67,198.61,15.19361688]
[1738847108515,15.19361688,198.66,198.6,20.29181688]
[1738847109004,87.4335,198.67,198.61,15.19361688]
[1738847109208,87.4335,198.67,198.6,20.29181688]
[1738847109209,82.4,198.66,198.6,20.29181688]
[1738847109703,0.10679701,198.61,198.6,20.29181688]
[1738847111013,0.10679701,198.61,198.6,0.063]
[1738847114923,0.10679701,198.61,198.6,30.45023376]
[1738847115085,0.10088048,198.63,198.6,30.45023376]
[1738847115288,0.10297588,198.65,198.6,39.46273376]
[1738847115602,0.0014349,198.66,198.6,26.52699318]
[1738847115806,0.0014349,198.66,198.61,0.50196]
[1738847115987,0.0014349,198.66,198.65,15.19361688]
[1738847116695,0.0014349,198.66,198.65,20.22751688]
[1738847117293,0.0014349,198.66,198.65,23.98523303]
[1738847119410,9.925e-05,198.67,198.66,0.25098]
[1738847119618,8.41e-05,198.68,198.66,15.44459688]
[1738847119819,8.41e-05,198.68,198.67,30.63821376]
[1738847120331,5.769e-05,198.7,198.69,0.12549]
[1738847120638,82.4,198.81,198.7,0.25098]
[1738847120812,82.4,198.81,198.77,15.19361688]
[1738847121404,82.4,198.81,198.76,15.19361688]
[1738847121712,82.4,198.81,198.75,15.19361688]
[1738847122035,82.4,198.81,198.78,15.19361688]
[1738847122632,82.4,198.81,198.77,15.19361688]
[1738847124731,82.4,198.81,198.76,20.22461688]
[1738847126422,82.4,198.81,198.77,15.19361688]
[1738847126615,0.12549,198.86,198.79,15.19361688]
[1738847126616,82.4,198.86,198.79,15.19361688]
[1738847126815,82.4,198.86,198.72,0.37647]
[1738847126816,82.4,198.86,198.8,15.19361688]
[1738847127937,97.59361688,198.86,198.79,15.19361688]
[1738847128425,102.62221688,198.86,198.79,20.22391688]
[1738847129138,82.4,198.86,198.8,15.19361688]
[1738847129637,0.10423527,198.81,198.8,15.19361688]
[1738847130640,0.10423527,198.81,198.8,20.22371688]
[1738847130838,0.10423527,198.81,198.8,35.41733376]
[1738847131045,0.10423527,198.81,198.8,20.22371688]
[1738847132025,0.10423527,198.81,198.8,15.19361688]
[1738847132429,0.10423527,198.81,198.79,20.22391688]
[1738847132948,0.10423527,198.81,198.79,5.0303]
[1738847133425,0.10423527,198.81,198.79,20.22391688]
[1738847133829,0.10423527,198.81,198.8,15.19361688]
[1738847134223,0.10423527,198.81,198.8,20.22371688]
[1738847135827,0.10423527,198.81,198.78,15.19361688]
[1738847135828,0.13423527,198.81,198.78,15.19361688]
[1738847136249,0.13423527,198.81,198.79,5.0304]
[1738847136735,0.13423527,198.81,198.78,15.19361688]
[1738847137049,0.13423527,198.81,198.8,15.19361688]
[1738847137428,0.13423527,198.81,198.8,30.38723376]
[1738847137836,0.13423527,198.81,198.8,15.19361688]
[1738847138327,0.13423527,198.81,198.8,20.22371688]
[1738847139255,0.13423527,198.81,198.8,35.41733376]
[1738847139854,0.09647176,198.82,198.81,1.85458]
[1738847140031,7.176e-05,198.82,198.81,23.70019688]
[1738847140234,5.471e-05,198.83,198.81,23.70019688]
[1738847140427,5.471e-05,198.83,198.82,15.44459688]
[1738847141138,5.471e-05,198.83,198.82,15.19361688]
[1738847142037,5.471e-05,198.83,198.82,20.22321688]
[1738847142440,5.471e-05,198.83,198.82,20.47419688]
[1738847144556,0.11010185,198.85,198.82,20.47419688]
[1738847144557,1.85e-06,198.85,198.84,0.12549]
[1738847144758,7.502e-05,198.86,198.85,0.25098]
[1738847145072,7.502e-05,198.86,198.85,15.44459688]
[1738847145854,7.502e-05,198.86,198.85,15.19361688]
[1738847146659,7.502e-05,198.86,198.85,20.22251688]
[1738847146959,7.502e-05,198.86,198.85,20.47349688]
[1738847147886,8.257e-05,198.87,198.86,0.25098]
[1738847148056,9.631e-05,198.88,198.86,15.44459688]
[1738847148383,9.631e-05,198.88,198.87,15.44459688]
[1738847149786,0.10218908,198.88,198.87,15.44459688]
[1738847149966,0.10218908,198.88,198.87,20.22201688]
[1738847150874,0.10209277,198.88,198.87,20.22201688]
[1738847151864,0.10209277,198.88,198.87,20.47299688]
[1738847152883,0.10209277,198.88,198.87,20.59848688]
[1738847153067,9.277e-05,198.88,198.87,20.59848688]
[1738847153265,4.413e-05,198.89,198.88,0.25098]
[1738847153467,0.13201609,198.91,198.89,2.16676]
[1738847153468,5.703e-05,198.91,198.89,2.16676]
[1738847153696,5.703e-05,198.91,198.9,30.51272376]
[1738847154190,5.703e-05,198.91,198.9,15.19361688]
[1738847155060,5.703e-05,198.91,198.9,20.22121688]
[1738847155558,5.703e-05,198.91,198.87,12.571]
[1738847155559,5.703e-05,198.91,198.87,15.19361688]
[1738847155760,5.703e-05,198.91,198.86,15.19361688]
[1738847156880,5.703e-05,198.91,198.87,15.19361688]
[1738847157079,5.703e-05,198.91,198.87,20.22181688]
[1738847157290,5.703e-05,198.91,198.88,15.19361688]
[1738847157662,5.703e-05,198.91,198.89,15.19361688]
[1738847158177,5.703e-05,198.91,198.9,15.19361688]
[1738847158361,5.703e-05,198.91,198.87,20.22181688]
[1738847158985,5.703e-05,198.91,198.86,5.0286]
[1738847159193,5.703e-05,198.91,198.86,20.22221688]
[1738847161204,5.703e-05,198.91,198.86,20.28521688]
[1738847161699,5.703e-05,198.91,198.86,15.25661688]
[1738847161899,15.19361688,198.9,198.86,0.063]
[1738847162088,15.19361688,198.89,198.86,0.063]
[1738847162303,82.40005703,198.91,198.86,15.25661688]
[1738847162670,97.59367391,198.91,198.86,0.063]
[1738847163298,82.40005703,198.91,198.86,0.063]
[1738847163681,97.59367391,198.91,198.86,0.063]
[1738847163870,102.62117391,198.91,198.86,0.063]
[1738847164284,15.19361688,198.9,198.86,0.063]
[1738847165292,102.62117391,198.91,198.86,0.063]
[1738847166609,1.06840735,198.9,198.86,0.063]
[1738847166795,15.31910688,198.87,198.86,0.063]
[1738847167986,20.34750688,198.87,198.86,0.063]
[1738847169078,5.15389,198.87,198.86,0.063]
[1738847169390,20.34750688,198.87,198.86,0.063]
[1738847169795,20.44733899,198.87,198.86,0.063]
[1738847171506,26.70633899,198.87,198.86,0.063]
[1738847173882,27.64946384,198.87,198.86,0.063]
[1738847174082,31.47664384,198.87,198.86,0.063]
[1738847175611,31.47664384,198.87,198.86,0.0001]
[1738847176481,31.47664384,198.87,198.71,0.063]
[1738847176482,15.19361688,198.77,198.71,0.063]
[1738847177586,2.0,198.81,198.74,15.19361688]
[1738847177587,15.19361688,198.81,198.74,15.19361688]
[1738847177782,19.17361688,198.83,198.76,15.19361688]
[1738847177996,82.4,198.82,198.76,15.19361688]
[1738847179121,87.4297,198.82,198.76,15.19361688]
[1738847180523,15.19361688,198.81,198.74,15.19361688]
[1738847180728,15.19361688,198.81,198.72,15.19361688]
[1738847180729,15.19361688,198.79,198.72,15.19361688]
[1738847181013,15.19361688,198.78,198.71,20.28901688]
[1738847181419,20.22411688,198.79,198.72,15.19361688]
[1738847182401,20.22411688,198.79,198.72,20.22561688]
[1738847183321,15.19361688,198.78,198.72,5.032]
[1738847183493,97.59361688,198.78,198.72,5.032]
[1738847184287,97.59361688,198.78,198.72,15.19361688]
[1738847185512,97.59361688,198.78,198.72,20.22561688]
[1738847185705,15.19361688,198.77,198.71,15.25661688]
[1738847185910,82.4,198.76,198.71,15.25661688]